bitfinex/quotes_BTCUSD_20230114
["timestamp","ask_amount","ask_price","bid_price","bid_amount"]
[1673714519199,0.00735141,20799.0,20798.0,1.14031127]
[1673714519957,0.00735141,20799.0,20798.0,1.72112627]
[1673714520457,0.00735141,20799.0,20798.0,1.89553]
[1673714520709,0.00735141,20799.0,20798.0,1.90018937]
[1673714521018,0.00735141,20799.0,20798.0,1.80018937]
[1673714521220,0.00735141,20799.0,20798.0,1.79553]
[1673714521716,0.00709341,20799.0,20798.0,1.79553]
[1673714522249,0.00709341,20799.0,20798.0,1.93653]
[1673714522474,0.00709341,20799.0,20798.0,1.79553]
[1673714522730,0.00709341,20799.0,20798.0,1.93453]
[1673714522987,0.00709341,20799.0,20798.0,1.79553]
[1673714523718,0.00709341,20799.0,20798.0,2.41173169]
[1673714525018,0.00709341,20799.0,20798.0,1.53453]
[1673714525288,0.19303382,20799.0,20798.0,0.4588]
[1673714525525,0.00709341,20799.0,20798.0,0.139]
[1673714526556,0.48788541,20799.0,20798.0,0.139]
[1673714526790,0.96867741,20799.0,20795.0,1.0]
[1673714527043,1.15461782,20799.0,20795.0,1.0]
[1673714527367,0.114,20798.0,20795.0,1.0]
[1673714527822,0.480838,20797.0,20795.0,1.0]
[1673714528076,0.480838,20797.0,20794.0,0.32331893]
[1673714528330,0.480838,20797.0,20792.0,0.580951]
[1673714528605,0.18594041,20796.0,20792.0,0.84137588]
[1673714528846,0.18594041,20796.0,20793.0,1.3063715]
[1673714529093,0.491838,20797.0,20794.0,0.3198]
[1673714529356,0.480863,20796.0,20793.0,1.3063715]
[1673714530390,0.961724,20796.0,20793.0,1.3063715]
[1673714531425,0.961724,20796.0,20793.0,0.3067676]
[1673714531729,0.961724,20796.0,20794.0,0.034]
[1673714531999,0.961724,20796.0,20793.0,0.3067676]
[1673714532241,0.961724,20796.0,20793.0,0.3407676]
[1673714532712,0.961724,20796.0,20793.0,0.3067676]
[1673714532771,0.961724,20796.0,20793.0,0.3407676]
[1673714532953,0.961724,20796.0,20793.0,0.034]
[1673714534508,0.961724,20796.0,20791.0,1.00423322]
[1673714534729,1.14766441,20796.0,20793.0,0.034]
[1673714534986,0.961724,20796.0,20793.0,0.034]
[1673714536545,0.30094041,20795.0,20790.0,0.9996039]
[1673714536804,1.075924,20796.0,20790.0,0.9985211]
[1673714536805,0.1139,20793.0,20790.0,0.9985211]
[1673714537061,0.81046825,20793.0,20790.0,0.9985211]
[1673714537331,0.29984041,20793.0,20790.0,0.9985211]
[1673714537615,1.442862,20792.0,20790.0,0.9985211]
[1673714537878,1.442862,20792.0,20790.0,0.9801135]
[1673714539194,0.73968149,20794.0,20791.0,0.25353752]
[1673714539195,0.480919,20794.0,20791.0,0.25353752]
[1673714539484,0.961845,20794.0,20791.0,0.44426347]
[1673714539732,0.8401,20795.0,20791.0,0.44426347]
[1673714539979,1.321003,20795.0,20791.0,0.44426347]
[1673714540341,0.480884,20796.0,20792.0,0.30572595]
[1673714540509,0.480827,20798.0,20792.0,0.115]
[1673714540510,0.042,20794.0,20792.0,0.115]
[1673714540706,0.042,20794.0,20793.0,0.57740935]
[1673714541511,0.480827,20798.0,20793.0,0.57740935]
[1673714541769,0.04,20795.0,20794.0,0.40161495]
[1673714542030,0.04,20795.0,20794.0,0.3198]
[1673714542295,0.04,20795.0,20793.0,0.34660935]
[1673714542521,0.480827,20798.0,20793.0,0.25760935]
[1673714542798,0.002,20795.0,20794.0,0.089]
[1673714543037,0.002,20795.0,20793.0,0.73853635]
[1673714543294,0.004,20795.0,20794.0,0.32411193]
[1673714543524,0.480838,20798.0,20794.0,0.64391193]
[1673714543782,0.480838,20798.0,20794.0,0.51483788]
[1673714544048,0.483838,20798.0,20794.0,0.51483788]
[1673714544289,0.480845,20797.0,20794.0,0.51483788]
[1673714544522,0.480845,20797.0,20794.0,0.32411193]
[1673714545004,0.480845,20797.0,20794.0,0.34011193]
[1673714545254,0.480845,20797.0,20794.0,0.32411193]
[1673714545498,0.482845,20797.0,20794.0,0.41311193]
[1673714545793,0.480845,20797.0,20794.0,0.32411193]
[1673714546014,0.961683,20797.0,20794.0,0.34011193]
[1673714546261,0.961683,20797.0,20794.0,0.32411193]
[1673714546533,0.963683,20797.0,20794.0,0.41311193]
[1673714546760,0.961683,20797.0,20794.0,0.32411193]
[1673714547763,0.961683,20797.0,20794.0,0.34011193]
[1673714548020,1.50174681,20797.0,20792.0,1.22521759]
[1673714548264,1.50374681,20797.0,20794.0,0.089]
[1673714548516,1.71701614,20797.0,20792.0,1.22521759]
[1673714548757,1.90295655,20797.0,20794.0,0.016]
[1673714549000,1.71701614,20797.0,20794.0,0.016]
[1673714549267,0.14335643,20796.0,20792.0,1.41594354]
[1673714549528,0.14335643,20796.0,20792.0,1.36521759]
[1673714549529,1.442667,20795.0,20792.0,1.36521759]
[1673714549775,1.442667,20795.0,20792.0,1.22521759]
[1673714550264,1.442667,20795.0,20794.0,0.002]
[1673714551043,1.442667,20795.0,20792.0,1.22521759]
[1673714551290,1.444667,20795.0,20792.0,1.31421759]
[1673714551575,1.442667,20795.0,20792.0,1.22521759]
[1673714551818,1.47944903,20795.0,20794.0,0.002]
[1673714552086,2.02597479,20795.0,20788.0,0.21441934]
[1673714552367,1.14540222,20794.0,20792.0,0.089]
[1673714552601,1.07363534,20793.0,20792.0,0.089]
[1673714552899,0.02794098,20791.0,20788.0,0.25704053]
[1673714553100,0.18594041,20790.0,20788.0,0.25704053]
[1673714553350,1.14794041,20790.0,20788.0,0.25904053]
[1673714553603,1.14794041,20790.0,20788.0,0.002]
[1673714553849,0.962,20790.0,20788.0,0.002]
[1673714554108,0.962,20790.0,20786.0,0.01409357]
[1673714554374,1.14794041,20790.0,20786.0,0.01409357]
[1673714554638,1.14794041,20790.0,20789.0,0.04140052]
[1673714554865,0.962,20790.0,20789.0,0.04140052]
[1673714555206,1.063,20790.0,20789.0,0.04140052]
[1673714555628,1.077,20790.0,20789.0,0.04140052]
[1673714555867,0.962,20790.0,20789.0,0.04140052]
[1673714556132,1.096,20790.0,20789.0,0.04140052]
[1673714556621,1.096,20790.0,20786.0,0.27381905]
[1673714556867,1.14794041,20790.0,20786.0,0.27381905]
[1673714557135,1.24894041,20790.0,20789.0,0.006]
[1673714557373,1.49887568,20790.0,20786.0,0.01409357]
[1673714557601,2.02721266,20790.0,20789.0,0.005]
[1673714557852,1.62737568,20790.0,20789.0,0.005]
[1673714560046,1.49837568,20790.0,20786.0,0.01409357]
[1673714560296,0.1144,20789.0,20786.0,0.01409357]
[1673714560557,1.443138,20788.0,20786.0,0.01409357]
[1673714561346,1.443138,20788.0,20786.0,0.06609357]
[1673714561589,0.02794098,20791.0,20786.0,0.42237759]
[1673714561834,0.006,20788.0,20787.0,0.62552595]
[1673714562094,0.006,20788.0,20787.0,0.4348]
[1673714562593,0.50893598,20791.0,20787.0,0.4348]
[1673714562849,0.51493598,20791.0,20788.0,0.211059]
[1673714563109,0.50893598,20791.0,20789.0,0.319767]
[1673714563346,0.50893598,20791.0,20790.0,0.20893874]
[1673714563597,0.50893598,20791.0,20788.0,0.19072595]
[1673714563869,0.50893598,20791.0,20787.0,0.59797074]
[1673714564117,0.69487639,20791.0,20787.0,0.59797074]
[1673714564427,0.69487639,20791.0,20788.0,0.320036]
[1673714564688,0.05594098,20791.0,20789.0,0.19072595]
[1673714564947,0.05594098,20791.0,20790.0,0.547836]
[1673714565186,0.05594098,20791.0,20790.0,1.909836]
[1673714565187,0.02794098,20791.0,20790.0,1.909836]
[1673714565500,0.13094098,20791.0,20790.0,1.909836]
[1673714565757,0.14374639,20798.0,20790.0,2.57776364]
[1673714566031,0.00709341,20799.0,20792.0,0.35736556]
[1673714566292,0.00709341,20799.0,20793.0,0.91070595]
[1673714566293,0.19303382,20799.0,20793.0,0.91070595]
[1673714566543,0.00709341,20799.0,20794.0,0.39929695]
[1673714566817,0.00709341,20799.0,20795.0,0.81067395]
[1673714567069,0.00709341,20799.0,20798.0,0.1149]
[1673714567324,0.00709341,20799.0,20798.0,0.62552595]
[1673714567572,0.01909341,20799.0,20798.0,0.4348]
[1673714567819,0.00709341,20799.0,20798.0,0.4348]
[1673714568098,0.03709341,20799.0,20798.0,0.4388]
[1673714568842,0.03709341,20799.0,20798.0,1.215615]
[1673714568843,0.00709341,20799.0,20798.0,1.215615]
[1673714569095,0.00709341,20799.0,20798.0,1.271615]
[1673714569096,0.02009341,20799.0,20798.0,1.271615]
[1673714569359,0.02009341,20799.0,20798.0,1.59377625]
[1673714569870,0.00709341,20799.0,20798.0,1.53777625]
[1673714570087,0.01909341,20799.0,20798.0,1.59377625]
[1673714570381,0.00709341,20799.0,20798.0,1.53777625]
[1673714570681,0.02009341,20799.0,20798.0,1.54089911]
[1673714570881,0.02009341,20799.0,20798.0,1.48489911]
[1673714571127,0.03209341,20799.0,20798.0,1.54089911]
[1673714571390,0.00709341,20799.0,20798.0,1.47989911]
[1673714571654,0.02009341,20799.0,20798.0,1.53589911]
[1673714572178,0.02009341,20799.0,20798.0,2.01671411]
[1673714572436,0.02009341,20799.0,20798.0,2.09993483]
[1673714573224,0.02009341,20799.0,20798.0,1.99993483]
[1673714573709,0.02009341,20799.0,20798.0,1.90681411]
[1673714575693,0.02009341,20799.0,20798.0,1.63753]
[1673714576228,0.02009341,20799.0,20798.0,1.96555547]
[1673714576483,0.02009341,20799.0,20798.0,1.63753]
[1673714576734,0.02009341,20799.0,20798.0,1.95004259]
[1673714577009,0.02009341,20799.0,20798.0,1.73753]
[1673714577285,0.02009341,20799.0,20798.0,2.03699283]
[1673714577592,0.02009341,20799.0,20798.0,1.73753]
[1673714577855,0.00785102,20805.0,20799.0,0.1138]
[1673714578129,0.00785102,20805.0,20800.0,2.82902832]
[1673714578648,0.00785102,20805.0,20801.0,1.32091763]
[1673714578928,0.00785102,20805.0,20803.0,0.2149]
[1673714579190,0.00785102,20805.0,20804.0,1.09658357]
[1673714579441,0.00785102,20805.0,20804.0,0.800472]
[1673714579694,0.00785102,20805.0,20804.0,1.16249999]
[1673714580205,0.00785102,20805.0,20804.0,1.64317599]
[1673714580451,0.00785102,20805.0,20804.0,1.94317599]
[1673714580711,0.00785102,20805.0,20804.0,2.07217599]
[1673714580984,0.00785102,20805.0,20804.0,2.07269093]
[1673714581752,0.00785102,20805.0,20804.0,1.54369093]
[1673714582004,0.00785102,20805.0,20804.0,1.66869093]
[1673714582283,0.00785102,20805.0,20804.0,0.319796]
[1673714583075,0.00785102,20805.0,20804.0,0.444796]
[1673714583323,0.00785102,20805.0,20804.0,0.925472]
[1673714584121,0.00785102,20805.0,20804.0,1.21399359]
[1673714584376,0.00785102,20805.0,20804.0,1.69466959]
[1673714584914,0.00785102,20805.0,20804.0,1.68701306]
[1673714585370,0.00785102,20805.0,20804.0,1.98701306]
[1673714585851,0.00785102,20805.0,20804.0,2.08701306]
[1673714586358,0.00785102,20805.0,20804.0,1.91613566]
[1673714586622,0.00785102,20805.0,20804.0,1.85435085]
[1673714587119,0.00785102,20805.0,20804.0,1.65170666]
[1673714587378,0.00785102,20805.0,20804.0,1.92824034]
[1673714587631,0.00785102,20805.0,20804.0,1.65170666]
[1673714587891,0.00785102,20805.0,20804.0,1.95170666]
[1673714588133,0.00785102,20805.0,20804.0,2.20970174]
[1673714588383,0.00785102,20805.0,20804.0,2.18903053]
[1673714588675,0.00785102,20805.0,20804.0,1.88903053]
[1673714588894,0.00785102,20805.0,20804.0,2.18903053]
[1673714589930,0.00785102,20805.0,20804.0,2.08903053]
[1673714591226,0.00835085,20812.0,20804.0,4.22908531]
[1673714591449,0.00097155,20809.0,20805.0,2.42397332]
[1673714591707,0.00835085,20812.0,20807.0,1.441815]
[1673714591957,0.00835085,20812.0,20808.0,1.78669532]
[1673714592218,0.00835085,20812.0,20810.0,0.114]
[1673714592469,0.00835085,20812.0,20811.0,1.269419]
[1673714592716,0.00835085,20812.0,20811.0,1.90344582]
[1673714593213,0.00835085,20812.0,20811.0,1.60344582]
[1673714593458,0.00835085,20812.0,20811.0,1.569419]
[1673714593786,0.00835085,20812.0,20811.0,1.84150101]
[1673714594208,0.00835085,20812.0,20811.0,1.98150101]
[1673714594456,0.00835085,20812.0,20811.0,1.709419]
[1673714594719,0.00835085,20812.0,20811.0,2.89663569]
[1673714594983,0.00835085,20812.0,20811.0,2.75663569]
[1673714595239,0.00835085,20812.0,20811.0,2.89563569]
[1673714595495,0.00835085,20812.0,20811.0,2.44556353]
[1673714595737,0.00835085,20812.0,20811.0,2.28556353]
[1673714596003,0.00835085,20812.0,20811.0,2.18556353]
[1673714596265,0.00835085,20812.0,20811.0,2.00504853]
[1673714596773,0.00835085,20812.0,20811.0,1.72604853]
[1673714597017,0.00835085,20812.0,20811.0,1.86504853]
[1673714597276,0.00835085,20812.0,20811.0,1.569419]
[1673714597586,0.00835085,20812.0,20811.0,1.823219]
[1673714598274,0.00835085,20812.0,20811.0,1.684219]
[1673714598519,0.00835085,20812.0,20811.0,1.64015021]
[1673714598772,0.00835085,20812.0,20811.0,1.50015021]
[1673714600520,0.00835085,20812.0,20811.0,1.94015021]
[1673714600762,0.00835085,20812.0,20811.0,1.64015021]
[1673714601013,0.00835085,20812.0,20811.0,1.94015021]
[1673714601253,0.00835085,20812.0,20811.0,1.64015021]
[1673714603500,0.00835085,20812.0,20811.0,1.94015021]
[1673714603737,0.42239633,20816.0,20812.0,0.42858077]
[1673714603999,0.42239633,20816.0,20813.0,0.48206395]
[1673714604298,0.48137636,20817.0,20814.0,0.208351]
[1673714604534,0.48137636,20817.0,20814.0,0.19072595]
[1673714605281,0.48137636,20817.0,20813.0,0.960908]
[1673714605528,0.66731677,20817.0,20813.0,0.480453]
[1673714605829,0.66731677,20817.0,20814.0,0.27286924]
[1673714606066,0.96175236,20817.0,20814.0,0.052]
[1673714606311,0.96175236,20817.0,20812.0,0.7464696]
[1673714606543,1.14769277,20817.0,20813.0,0.125]
[1673714607049,1.14769277,20817.0,20814.0,0.052]
[1673714607295,0.96175236,20817.0,20812.0,0.2659966]
[1673714607546,0.96175236,20817.0,20811.0,0.480495]
[1673714607547,0.29984041,20816.0,20813.0,0.125]
[1673714607788,1.13690364,20817.0,20810.0,0.32006966]
[1673714607789,0.1142,20814.0,20810.0,0.32006966]
[1673714608035,1.14688341,20813.0,20810.0,0.32006966]
[1673714608535,1.14688341,20813.0,20809.0,0.480542]
[1673714608761,1.14688341,20813.0,20809.0,0.79275449]
[1673714609047,1.14688341,20813.0,20810.0,0.319941]
[1673714609292,0.960943,20813.0,20809.0,0.79275449]
[1673714609529,1.14688341,20813.0,20809.0,0.79275449]
[1673714610034,0.1142,20814.0,20810.0,0.28905221]
[1673714610269,0.4813976,20815.0,20811.0,0.99117795]
[1673714610270,0.4813996,20815.0,20811.0,0.99117795]
[1673714610539,0.0009566,20815.0,20812.0,0.37052895]
[1673714610800,1.34615647,20816.0,20812.0,0.19072595]
[1673714611037,1.34615647,20816.0,20813.0,0.26571074]
[1673714611773,0.001,20814.0,20813.0,0.26571074]
[1673714612259,1.34615647,20816.0,20813.0,0.26571074]
[1673714612509,1.82657947,20816.0,20811.0,0.8133626]
[1673714612770,0.18594041,20815.0,20811.0,0.8133626]
[1673714613014,0.66637341,20815.0,20811.0,0.8133626]
[1673714613263,0.005,20814.0,20811.0,0.8133626]
[1673714613545,0.480437,20815.0,20811.0,0.8133626]
[1673714613789,0.66637741,20815.0,20811.0,0.9533626]
[1673714614045,1.14679941,20815.0,20811.0,0.620496]
[1673714614316,1.14679941,20815.0,20811.0,0.14]
[1673714614558,1.14679941,20815.0,20810.0,1.25549855]
[1673714614559,0.960859,20815.0,20810.0,1.25549855]
[1673714614817,1.14879941,20815.0,20811.0,0.14]
[1673714615080,0.960859,20815.0,20811.0,0.19072595]
[1673714615320,1.14679941,20815.0,20810.0,1.25550355]
[1673714615594,1.14679941,20815.0,20811.0,0.072]
[1673714615595,1.62822141,20815.0,20811.0,0.072]
[1673714615829,0.115,20814.0,20811.0,0.072]
[1673714616083,0.595447,20814.0,20811.0,0.19072595]
[1673714616424,0.481434,20815.0,20812.0,0.25494523]
[1673714616618,0.481434,20815.0,20812.0,0.44567118]
[1673714616875,0.481434,20815.0,20812.0,0.73543523]
[1673714617130,0.481434,20815.0,20812.0,0.48049]
[1673714617386,0.481434,20815.0,20811.0,0.480515]
[1673714617387,0.961856,20815.0,20811.0,0.480515]
[1673714617677,1.14779641,20815.0,20811.0,0.480515]
[1673714617923,1.14779641,20815.0,20810.0,0.27342814]
[1673714617924,1.62721841,20815.0,20810.0,0.27342814]
[1673714618186,0.039,20814.0,20811.0,0.01]
[1673714618445,0.480468,20813.0,20810.0,0.27342814]
[1673714618707,1.14687641,20813.0,20811.0,0.003]
[1673714619014,0.960936,20813.0,20810.0,0.27342814]
[1673714619231,0.960936,20813.0,20811.0,0.003]
[1673714619505,0.960936,20813.0,20810.0,0.27342814]
[1673714619789,1.012936,20813.0,20811.0,0.003]
[1673714620561,0.960936,20813.0,20809.0,0.76619465]
[1673714620819,0.960936,20813.0,20810.0,0.008]
[1673714620820,1.14687641,20813.0,20810.0,0.008]
[1673714621073,0.960936,20813.0,20809.0,0.76619465]
[1673714621326,1.14687641,20813.0,20809.0,0.76619465]
[1673714621848,0.963936,20813.0,20809.0,0.84519465]
[1673714622116,1.26487641,20813.0,20809.0,0.079]
[1673714622405,1.74534441,20813.0,20809.0,0.079]
[1673714623509,1.559404,20813.0,20809.0,0.079]
[1673714623758,1.559404,20813.0,20809.0,0.26972595]
[1673714624011,1.74534441,20813.0,20809.0,0.079]
[1673714625213,1.559404,20813.0,20809.0,0.079]
[1673714625464,1.74534441,20813.0,20809.0,0.079]
[1673714625712,1.559404,20813.0,20809.0,0.079]
[1673714627173,0.030394,20812.0,20809.0,0.079]
[1673714627445,0.96103,20811.0,20809.0,0.079]
[1673714628457,0.96103,20811.0,20807.0,0.2640934]
[1673714628704,1.14697041,20811.0,20807.0,0.2640934]
[1673714628957,1.14697041,20811.0,20807.0,0.40703962]
[1673714629206,0.96103,20811.0,20808.0,0.28839901]
[1673714629700,0.96403,20811.0,20808.0,0.32822979]
[1673714629957,0.96103,20811.0,20808.0,0.32822979]
[1673714630501,0.96403,20811.0,20808.0,0.46822979]
[1673714631260,0.96403,20811.0,20808.0,0.17983078]
[1673714633830,0.96403,20811.0,20809.0,0.63833215]
[1673714633831,0.003,20811.0,20809.0,0.63833215]
[1673714634082,0.48141626,20814.0,20810.0,0.660396]
[1673714634362,0.48141626,20814.0,20811.0,0.51063495]
[1673714634588,0.48141626,20814.0,20812.0,0.179835]
[1673714634865,0.48141626,20814.0,20811.0,0.73920504]
[1673714635104,0.480459,20814.0,20811.0,0.73920504]
[1673714635867,0.594828,20815.0,20811.0,0.73920504]
[1673714636117,0.04,20814.0,20813.0,0.32274323]
[1673714636328,0.04,20814.0,20813.0,0.50251923]
[1673714636811,0.480418,20816.0,20813.0,0.50251923]
[1673714637057,0.04,20815.0,20813.0,0.32274323]
[1673714638276,0.480418,20816.0,20813.0,0.32274323]
[1673714638519,0.039,20814.0,20813.0,0.33374323]
[1673714638827,0.480418,20816.0,20813.0,0.32274323]
[1673714639075,0.039,20815.0,20813.0,0.33374323]
[1673714639328,0.480418,20816.0,20813.0,0.32274323]
[1673714639593,0.039,20814.0,20813.0,0.011]
[1673714639867,1.88447539,20814.0,20813.0,0.011]
[1673714640109,2.1256258,20814.0,20809.0,0.33333416]
[1673714640358,2.1256258,20814.0,20813.0,0.011]
[1673714640359,1.91514887,20814.0,20813.0,0.011]
[1673714640614,2.01064056,20814.0,20813.0,0.011]
[1673714640864,1.80239857,20814.0,20813.0,0.011]
[1673714641102,1.80239857,20814.0,20809.0,0.33333416]
[1673714641360,0.1147,20812.0,20809.0,0.33333416]
[1673714641606,1.07571,20812.0,20809.0,0.33333416]
[1673714642343,1.07571,20812.0,20809.0,0.41433416]
[1673714642598,1.07571,20812.0,20809.0,0.33333416]
[1673714642847,0.597212,20812.0,20810.0,0.28785488]
[1673714644119,0.595212,20812.0,20810.0,0.28785488]
[1673714644377,0.595212,20812.0,20810.0,0.29785488]
[1673714645601,1.075704,20812.0,20810.0,0.29785488]
[1673714646096,1.075704,20812.0,20810.0,0.01]
[1673714650075,1.075704,20812.0,20810.0,0.00605]
[1673714651534,1.21948522,20812.0,20810.0,0.00605]
[1673714652320,1.21948522,20812.0,20807.0,0.83795256]
[1673714652570,0.2283,20808.0,20805.0,0.14294622]
[1673714652827,0.2283,20808.0,20804.0,0.65299897]
[1673714652828,0.81194141,20807.0,20804.0,0.65299897]
[1673714653077,0.81194141,20807.0,20805.0,0.14294622]
[1673714653078,0.18594041,20806.0,20805.0,0.14294622]
[1673714653340,0.595607,20807.0,20804.0,0.15268718]
[1673714653611,1.26217341,20807.0,20804.0,0.00974096]
[1673714653855,1.076233,20807.0,20804.0,0.00974096]
[1673714654105,1.079233,20807.0,20804.0,0.00974096]
[1673714654352,1.076233,20807.0,20804.0,0.00974096]
[1673714655157,1.124233,20807.0,20804.0,0.01974096]
[1673714655651,1.54674833,20807.0,20804.0,0.01974096]
[1673714655888,0.55956957,20805.0,20800.0,0.5]
[1673714656139,0.14388814,20803.0,20800.0,0.82197123]
[1673714656372,0.511117,20802.0,20801.0,0.32974995]
[1673714656613,0.480723,20802.0,20800.0,0.7741302]
[1673714656861,0.66666341,20802.0,20800.0,0.7741302]
[1673714657113,0.66666341,20802.0,20800.0,0.504]
[1673714657114,0.030394,20801.0,20800.0,0.504]
[1673714657357,0.51114,20801.0,20800.0,0.5]
[1673714657598,0.51114,20801.0,20800.0,0.504]
[1673714657845,0.51114,20801.0,20800.0,0.5]
[1673714658851,0.57614,20801.0,20800.0,0.51]
[1673714659083,1.056886,20801.0,20800.0,0.51]
[1673714659337,0.991886,20801.0,20800.0,0.5]
[1673714659574,1.056886,20801.0,20800.0,0.51]
[1673714660837,1.285186,20801.0,20800.0,0.51]
[1673714661832,1.140392,20801.0,20800.0,0.51]
[1673714662874,1.170786,20801.0,20800.0,0.51]
[1673714663126,1.140392,20801.0,20800.0,0.51]
[1673714663374,1.026492,20801.0,20800.0,0.51]
[1673714665417,1.171886,20801.0,20800.0,0.51]
[1673714667510,1.141492,20801.0,20800.0,0.51]
[1673714669273,1.171886,20801.0,20800.0,0.51]
[1673714669534,1.141492,20801.0,20800.0,0.51]
[1673714669855,1.171886,20801.0,20800.0,0.51]
[1673714671598,1.652632,20801.0,20800.0,0.51]
[1673714671842,1.8659675,20801.0,20800.0,0.51]
[1673714672587,1.652632,20801.0,20800.0,0.51]
[1673714673076,1.537632,20801.0,20800.0,0.51]
[1673714678029,1.537632,20801.0,20800.0,0.82766632]
[1673714678278,1.026492,20801.0,20800.0,0.82766632]
[1673714679580,1.026492,20801.0,20800.0,0.51]
[1673714680343,1.66935,20801.0,20800.0,0.51]
[1673714680633,1.66935,20801.0,20800.0,0.50992119]
[1673714680634,1.537632,20801.0,20800.0,0.50992119]
[1673714680880,1.056886,20801.0,20800.0,0.50992119]
[1673714681154,1.026492,20801.0,20800.0,0.50992119]
[1673714681881,1.056886,20801.0,20800.0,0.50992119]
[1673714683940,1.171486,20801.0,20800.0,0.50992119]
[1673714684410,1.652232,20801.0,20800.0,0.50992119]
[1673714685166,2.167232,20801.0,20800.0,0.50992119]
[1673714685170,3.19295295,20801.0,20800.0,0.21456589]
[1673714685417,3.64870791,20801.0,20800.0,0.21456589]
[1673714685943,3.79259605,20801.0,20800.0,8.9e-07]
[1673714686266,4.60659605,20801.0,20797.0,0.01253662]
[1673714686498,0.71542074,20800.0,20797.0,0.01253662]
[1673714686767,0.229,20798.0,20797.0,0.01253662]
[1673714687030,1.90611302,20798.0,20797.0,0.01253662]
[1673714687585,1.60611302,20798.0,20797.0,0.01353662]
[1673714687858,1.221024,20798.0,20797.0,0.01253662]
[1673714688108,1.243024,20798.0,20797.0,0.01353662]
[1673714689201,1.243024,20798.0,20797.0,0.10089662]
[1673714689459,1.21263,20798.0,20797.0,0.10089662]
[1673714689714,1.21263,20798.0,20797.0,0.09989662]
[1673714689715,1.243024,20798.0,20797.0,0.09989662]
[1673714690480,1.21263,20798.0,20797.0,0.09989662]
[1673714690961,1.243024,20798.0,20797.0,0.01253662]
[1673714691195,1.21263,20798.0,20797.0,0.01253662]
[1673714691450,1.243024,20798.0,20797.0,0.01253662]
[1673714691697,1.243024,20798.0,20797.0,0.26829336]
[1673714691953,0.137,20798.0,20797.0,0.26829336]
[1673714692710,0.137,20798.0,20797.0,0.58823436]
[1673714692939,0.961569,20800.0,20797.0,0.58823436]
[1673714693201,0.961569,20800.0,20797.0,0.26829336]
[1673714693202,0.135,20798.0,20797.0,0.26829336]
[1673714693453,0.480783,20800.0,20797.0,0.26829336]
[1673714693696,0.48172421,20802.0,20798.0,0.235]
[1673714693941,0.48172421,20802.0,20799.0,0.19072595]
[1673714694660,0.48172421,20802.0,20798.0,0.235]
[1673714694923,0.48172421,20802.0,20798.0,0.42572595]
[1673714695161,0.48172421,20802.0,20799.0,0.29809965]
[1673714695406,0.57572421,20802.0,20799.0,0.29809965]
[1673714695654,0.48172421,20802.0,20799.0,0.29809965]
[1673714695905,0.09499921,20802.0,20799.0,0.62456102]
[1673714696140,0.09499921,20802.0,20800.0,0.319941]
[1673714696141,0.00099921,20802.0,20800.0,0.319941]
[1673714696382,0.00099921,20802.0,20799.0,0.87604249]
[1673714696383,0.13599921,20802.0,20799.0,0.39626149]
[1673714696654,0.135,20802.0,20800.0,0.319941]
[1673714696900,0.135,20802.0,20799.0,1.35783049]
[1673714697145,1.10624083,20804.0,20799.0,1.21305047]
[1673714697400,0.021,20802.0,20799.0,1.55055644]
[1673714697648,0.021,20802.0,20799.0,1.21605047]
[1673714697891,0.021,20802.0,20800.0,0.32025529]
[1673714698384,0.4807,20803.0,20800.0,0.32025529]
[1673714698630,0.021,20802.0,20800.0,0.32025529]
[1673714699171,0.115,20802.0,20800.0,0.32225529]
[1673714699420,1.02731245,20804.0,20800.0,0.32025529]
[1673714699669,1.055426,20803.0,20800.0,0.51298124]
[1673714699917,1.055426,20803.0,20800.0,0.32025529]
[1673714700202,1.055426,20803.0,20800.0,0.32225529]
[1673714700203,0.094,20802.0,20800.0,0.32225529]
[1673714700447,0.95547204,20804.0,20800.0,0.32025529]
[1673714700681,0.480711,20803.0,20801.0,0.25123934]
[1673714700937,0.961425,20803.0,20801.0,0.25123934]
[1673714701188,0.115,20802.0,20798.0,0.46635808]
[1673714701432,1.62818641,20801.0,20798.0,0.46635808]
[1673714702416,1.442246,20801.0,20798.0,0.46635808]
[1673714702657,1.442246,20801.0,20799.0,0.31001666]
[1673714702910,1.452246,20801.0,20799.0,0.31001666]
[1673714703183,1.452246,20801.0,20798.0,0.147]
[1673714703421,1.332246,20801.0,20798.0,0.147]
[1673714703919,1.332246,20801.0,20798.0,0.47512971]
[1673714704162,1.322246,20801.0,20798.0,0.46312971]
[1673714704894,1.332246,20801.0,20799.0,0.2494718]
[1673714705432,0.851496,20801.0,20800.0,0.29357327]
[1673714705910,0.40975,20801.0,20800.0,0.29357327]
[1673714706154,0.39975,20801.0,20800.0,0.29357327]
[1673714706395,0.595731,20802.0,20800.0,0.29357327]
[1673714706634,0.480731,20802.0,20800.0,0.29357327]
[1673714707148,0.021,20801.0,20800.0,0.29357327]
[1673714707651,0.00095469,20804.0,20800.0,0.319941]
[1673714707946,0.00095469,20804.0,20802.0,0.1436153]
[1673714708194,0.00095469,20804.0,20803.0,0.55801983]
[1673714708478,0.15229208,20808.0,20803.0,0.55801983]
[1673714708723,0.15229208,20808.0,20804.0,0.37079795]
[1673714708970,0.15229208,20808.0,20805.0,0.319852]
[1673714709222,0.15229208,20808.0,20805.0,0.19072595]
[1673714709462,0.00840394,20808.0,20805.0,0.19072595]
[1673714709963,0.00840394,20808.0,20806.0,0.319941]
[1673714710211,0.00840394,20808.0,20805.0,0.19072595]
[1673714710212,0.00840394,20808.0,20807.0,0.179939]
[1673714710466,0.00840394,20808.0,20805.0,0.19072595]
[1673714710712,0.19434435,20808.0,20804.0,0.85789792]
[1673714710959,0.21734435,20808.0,20806.0,0.31881077]
[1673714711210,0.21734435,20808.0,20807.0,0.002]
[1673714711211,0.03140394,20808.0,20807.0,0.002]
[1673714711456,0.14340394,20808.0,20807.0,0.08736]
[1673714712461,0.15240394,20808.0,20807.0,0.08736]
[1673714713466,0.15240394,20808.0,20807.0,0.4586622]
[1673714713467,0.00840394,20808.0,20807.0,0.4586622]
[1673714713703,0.14340394,20808.0,20807.0,0.7806032]
[1673714713952,0.14340394,20808.0,20807.0,1.2612102]
[1673714715688,0.14340394,20808.0,20807.0,1.7418172]
[1673714716440,0.14340394,20808.0,20807.0,1.88676965]
[1673714716674,0.14340394,20808.0,20807.0,2.18676965]